bitfinex-derivatives/quotes_SOLF0:USTF0_20250505
["timestamp","ask_amount","ask_price","bid_price","bid_amount"]
[1746439959022,6.8598,145.77,145.74,3.78878876]
[1746439959822,6.8598,145.77,145.71,24.26]
[1746439960021,6.8598,145.77,145.74,3.78878876]
[1746439960622,6.8598,145.77,145.74,10.64958876]
[1746439964121,6.8598,145.77,145.74,6.8608]
[1746439964523,6.8598,145.77,145.75,6.8606]
[1746439966424,6.8598,145.77,145.74,6.8608]
[1746439967327,6.8598,145.77,145.75,6.8606]
[1746439970229,6.8598,145.77,145.74,6.8609]
[1746439971028,6.8598,145.77,145.75,6.8606]
[1746439973828,6.8602,145.76,145.74,6.861]
[1746439975833,6.8602,145.76,145.75,6.8607]
[1746439976327,6.86,145.77,145.75,6.8607]
[1746439977934,6.8602,145.76,145.74,6.8609]
[1746439979433,6.8599,145.77,145.75,6.8607]
[1746439980532,6.8602,145.76,145.74,6.8609]
[1746439980827,3.78878876,145.77,145.71,24.26]
[1746439981033,6.8611,145.75,145.72,6.8618]
[1746439981431,3.78878876,145.77,145.72,6.8618]
[1746439981633,6.8613,145.74,145.72,6.8618]
[1746439983437,6.8613,145.74,145.71,31.1223]
[1746439984236,6.8619,145.73,145.71,24.26]
[1746439984630,28.04878876,145.75,145.7,1.0]
[1746439984830,6.8626,145.71,145.7,1.0]
[1746439986037,6.8623,145.72,145.7,1.0]
[1746439986838,6.8623,145.72,145.7,7.8629]
[1746439987035,6.8619,145.73,145.7,7.8629]
[1746439987335,28.04878876,145.75,145.7,1.0]
[1746439987536,6.8621,145.73,145.7,7.8628]
[1746439988039,28.04878876,145.75,145.7,7.8628]
[1746439988939,6.8619,145.73,145.7,7.8628]
[1746439990046,6.8621,145.72,145.7,7.8628]
[1746439991744,6.8619,145.73,145.7,7.8628]
[1746439994441,6.8621,145.72,145.7,7.8628]
[1746439994645,3.78878876,145.73,145.7,1.0]
[1746439996344,6.8626,145.71,145.7,1.0]
[1746439996846,6.8623,145.72,145.7,1.0]
[1746439997646,6.8626,145.71,145.7,1.0]
[1746440008069,6.8625,145.72,145.7,1.0]
[1746440008973,6.8626,145.71,145.7,1.0]
[1746440014571,31.1026,145.71,145.7,1.0]
[1746440014776,31.1026,145.71,145.63,3.78878876]
[1746440014777,28.02878876,145.71,145.63,3.78878876]
[1746440015377,6.8647,145.67,145.64,79.05030208]
[1746440015573,28.02878876,145.71,145.64,79.05030208]
[1746440016072,3.78878876,145.69,145.65,6.865]
[1746440016272,28.02878876,145.71,145.65,3.78878876]
[1746440016570,6.8642,145.68,145.65,3.78878876]
[1746440016976,6.8642,145.68,145.65,10.65388876]
[1746440017178,6.8647,145.67,145.65,3.78878876]
[1746440018174,6.8647,145.67,145.65,10.65418876]
[1746440019478,6.865,145.66,145.64,10.65458876]
[1746440021081,6.865,145.66,145.64,3.78878876]
[1746440021379,6.865,145.66,145.63,6.8661]
[1746440022076,6.8654,145.65,145.62,36.91948876]
[1746440022275,6.8654,145.65,145.62,30.05288876]
[1746440022780,6.8654,145.65,145.63,6.8661]
[1746440023881,6.8651,145.66,145.63,6.8661]
[1746440024405,6.8654,145.65,145.63,6.8661]
[1746440024581,6.8654,145.65,145.62,10.65538876]
[1746440024780,6.8654,145.65,145.62,3.78878876]
[1746440025075,6.8654,145.65,145.63,6.8661]
[1746440027083,6.8654,145.65,145.63,7.8661]
[1746440027985,24.24,145.67,145.63,1.0]
[1746440027986,6.8659,145.64,145.63,1.0]
[1746440028481,28.02878876,145.67,145.63,1.0]
[1746440028677,6.8659,145.64,145.63,1.0]
[1746440028875,28.02878876,145.67,145.63,1.0]
[1746440029278,6.8657,145.65,145.63,1.0]
[1746440029886,6.8659,145.64,145.63,1.0]
[1746440030081,28.02878876,145.67,145.63,7.8661]
[1746440030483,6.8657,145.65,145.63,7.8661]
[1746440030984,6.8657,145.65,145.63,1.0]
[1746440031183,28.02878876,145.67,145.63,1.0]
[1746440031883,6.8657,145.65,145.63,1.0]
[1746440032488,6.8659,145.64,145.63,1.0]
[1746440034588,6.8654,145.66,145.63,1.0]
[1746440034789,24.24,145.67,145.63,1.0]
[1746440035186,31.1047,145.67,145.63,1.0]
[1746440036686,31.1047,145.67,145.65,6.8652]
[1746440036887,31.1047,145.67,145.63,1.0]
[1746440037187,31.1047,145.67,145.64,6.8656]
[1746440037692,6.8651,145.66,145.63,7.8661]
[1746440038700,6.8654,145.65,145.63,7.8661]
[1746440039293,24.24,145.7,145.64,3.78878876]
[1746440039690,3.78878876,145.69,145.64,3.78878876]
[1746440039891,6.8649,145.66,145.64,10.65438876]
[1746440040192,3.78878876,145.69,145.64,10.65438876]
[1746440040391,3.78878876,145.69,145.64,3.78878876]
[1746440040792,6.8649,145.66,145.64,10.65438876]
[1746440041195,3.78878876,145.69,145.64,3.78878876]
[1746440042091,6.865,145.66,145.64,10.65428876]
[1746440042595,6.8654,145.65,145.64,3.78878876]
[1746440043098,6.8654,145.65,145.63,32.1061]
[1746440043296,6.8654,145.65,145.63,7.8661]
[1746440043998,6.8659,145.64,145.63,1.0]
[1746440165584,6.8668,145.62,145.61,2.0]
[1746440165887,10.65558876,145.62,145.61,2.0]
[1746440173892,34.83558876,145.62,145.61,2.0]
[1746440174993,6.8682,145.59,145.58,6.2054]
[1746440175396,3.78878876,145.6,145.58,6.2054]
[1746440175590,10.65678876,145.6,145.58,6.2054]
[1746440176788,6.868,145.6,145.58,6.2054]
[1746440178495,6.8682,145.59,145.58,6.2054]
[1746440178896,27.96878876,145.62,145.58,6.2054]
[1746440179196,6.868,145.6,145.58,6.2054]
[1746440180698,6.8682,145.59,145.58,6.2054]
[1746440182001,6.868,145.6,145.58,6.2054]
[1746440183202,6.8682,145.59,145.58,6.2054]
[1746440187504,6.8679,145.6,145.58,13.0741]
[1746440187801,24.18,145.62,145.58,6.2054]
[1746440188503,6.8675,145.61,145.59,6.8682]
[1746440190007,6.8677,145.6,145.58,13.0738]
[1746440190510,6.8676,145.61,145.59,6.8682]
[1746440191609,6.8677,145.6,145.58,13.0739]
[1746440192010,24.18,145.62,145.58,13.0739]
[1746440192307,6.8677,145.6,145.58,13.0739]
[1746440193106,6.8677,145.6,145.59,6.8682]
[1746440193611,6.8677,145.6,145.58,6.2054]
[1746440193916,6.8677,145.6,145.58,13.0738]
[1746440194210,6.8675,145.61,145.58,6.2054]
[1746440194406,6.8675,145.61,145.58,13.0738]
[1746440194908,6.8679,145.6,145.58,13.0738]
[1746440195104,24.18,145.62,145.58,13.0738]
[1746440196012,6.8675,145.61,145.59,6.8682]
[1746440196311,6.8675,145.61,145.58,6.2054]
[1746440197013,6.8675,145.61,145.59,6.8681]
[1746440199315,6.8675,145.61,145.58,13.0738]
[1746440202116,6.8678,145.6,145.58,13.0738]
[1746440206020,6.8675,145.61,145.59,6.8682]
[1746440206318,24.18,145.62,145.58,6.2054]
[1746440207420,6.8679,145.6,145.58,13.0739]
[1746440210623,6.8675,145.61,145.58,13.0739]
[1746440213222,6.8678,145.6,145.58,6.2054]
[1746440213419,3.78878876,145.61,145.54,3.78878876]
[1746440213723,10.65728876,145.59,145.53,3.78878876]
[1746440213928,10.65728876,145.59,145.56,6.8694]
[1746440214825,10.65728876,145.59,145.56,7.8694]
[1746440215822,6.8687,145.58,145.56,7.8694]
[1746440216023,6.8687,145.58,145.56,1.0]
[1746440217328,6.8692,145.57,145.56,1.0]
[1746440217826,6.8689,145.58,145.56,1.0]
[1746440218624,6.8692,145.57,145.56,1.0]
[1746440221629,27.92878876,145.57,145.48,2.0654]
[1746440221931,3.78878876,145.55,145.49,3.78878876]
[1746440222329,6.8708,145.54,145.51,6.8717]
[1746440224531,6.8712,145.53,145.5,10.8853]
[1746440227937,6.8712,145.53,145.51,6.8719]
[1746440228135,3.78878876,145.56,145.51,3.78878876]
[1746440228328,3.78878876,145.59,145.53,3.78878876]
[1746440228531,24.16,145.58,145.54,6.8703]
[1746440228732,6.8693,145.57,145.53,3.78878876]
[1746440229038,6.8693,145.57,145.54,6.8703]
[1746440229337,31.0289,145.58,145.53,3.78878876]
[1746440229539,31.0289,145.58,145.55,6.8698]
[1746440229940,6.8693,145.57,145.55,6.8698]
[1746440230541,6.8693,145.57,145.54,6.8705]
[1746440231642,6.8697,145.56,145.54,6.8705]
[1746440232237,6.8694,145.57,145.54,6.8705]
[1746440232445,24.16,145.58,145.54,6.8705]
[1746440232947,6.8694,145.57,145.54,6.8705]
[1746440235246,6.8697,145.56,145.54,6.8705]
[1746440236048,24.16,145.58,145.53,6.8709]
[1746440236249,3.78878876,145.57,145.53,6.8709]
[1746440236851,6.8697,145.56,145.53,6.8709]
[1746440237451,6.8701,145.55,145.52,10.66008876]
[1746440238150,6.8701,145.55,145.52,6.8713]
[1746440238450,6.8701,145.55,145.5,7.80188876]
[1746440238752,3.78878876,145.55,145.5,7.80188876]
[1746440239048,3.78878876,145.55,145.51,6.8719]
[1746440239453,6.8711,145.53,145.5,8.916]
[1746440239751,24.16,145.54,145.5,2.0438]
[1746440240048,31.0309,145.54,145.51,6.8719]
[1746440241249,6.8711,145.53,145.51,6.8719]
[1746440241849,6.8711,145.53,145.5,8.916]
[1746440243251,3.78878876,145.53,145.49,6.8728]
[1746440243549,3.78878876,145.53,145.48,29.99418876]
[1746440244150,6.8717,145.52,145.48,29.99418876]
[1746440245450,6.8717,145.52,145.5,6.8724]
[1746440246150,3.78878876,145.53,145.49,6.8727]
[1746440247053,6.8716,145.52,145.49,6.8727]
[1746440248154,3.78878876,145.53,145.48,12.72748876]
[1746440248356,3.78878876,145.53,145.48,8.9387]
[1746440248755,6.8722,145.51,145.48,8.9387]
[1746440248955,3.78878876,145.51,145.48,2.0654]
[1746440249854,6.8727,145.5,145.48,2.0654]
[1746440251054,6.8727,145.5,145.48,8.9388]
[1746440251356,6.8727,145.5,145.48,2.0654]
[1746440251856,6.8727,145.5,145.47,6.8737]
[1746440252055,6.8732,145.49,145.46,6.8741]
[1746440252358,3.78878876,145.48,145.43,2.0016]
[1746440252558,6.874,145.47,145.43,2.0016]
[1746440252857,6.874,145.47,145.44,6.8751]
[1746440253255,6.874,145.47,145.43,8.8771]
[1746440253758,6.874,145.47,145.44,6.8752]
[1746440253953,10.66258876,145.48,145.43,2.0016]
[1746440254157,3.78878876,145.48,145.43,2.0016]
[1746440254354,3.78878876,145.48,145.44,6.875]
[1746440254758,10.66258876,145.48,145.44,6.875]
[1746440255056,3.78878876,145.48,145.44,6.875]
[1746440255555,3.78878876,145.48,145.43,2.0016]
[1746440256057,6.8741,145.47,145.44,6.875]
[1746440257963,6.8736,145.48,145.43,2.0016]
[1746440258159,3.78878876,145.49,145.43,2.0016]
[1746440259069,6.8742,145.47,145.44,6.8752]
[1746440259364,3.78878876,145.49,145.43,2.0016]
[1746440259759,6.8742,145.47,145.43,8.8769]
[1746440260258,6.8742,145.47,145.43,2.0016]
[1746440260564,6.8742,145.47,145.44,6.8752]
[1746440261165,6.8745,145.46,145.43,8.8771]
[1746440261761,6.8745,145.46,145.43,8.8772]
[1746440262270,3.78878876,145.47,145.44,6.8753]
[1746440263173,6.8745,145.46,145.44,6.8753]
[1746440263572,3.78878876,145.47,145.44,6.8753]
[1746440263774,10.66298876,145.47,145.44,6.8753]
[1746440264273,6.8744,145.46,145.44,6.8753]
[1746440264473,3.78878876,145.47,145.44,6.8753]
[1746440264977,6.8746,145.46,145.43,8.8771]
[1746440265174,6.8746,145.46,145.43,2.0016]
[1746440265571,6.8746,145.46,145.44,6.875]
[1746440265875,6.8741,145.47,145.43,5.79038876]
[1746440266675,6.8741,145.47,145.44,6.8752]
[1746440266972,6.8741,145.47,145.43,2.0016]
[1746440267177,6.8741,145.47,145.43,5.79038876]
[1746440267873,6.8741,145.47,145.45,6.8748]
[1746440269079,3.78878876,145.47,145.43,2.0016]
[1746440269577,6.8732,145.49,145.46,6.8741]
[1746440270076,6.8732,145.49,145.45,3.78878876]
[1746440270274,6.8735,145.48,145.45,10.66338876]
[1746440270777,6.8739,145.48,145.44,6.8751]
[1746440270976,3.78878876,145.49,145.44,6.8751]
[1746440271477,3.78878876,145.49,145.43,5.79038876]
[1746440271878,6.8747,145.46,145.43,5.79038876]
[1746440272178,6.8747,145.46,145.43,12.66608876]
[1746440272478,6.8748,145.45,145.43,12.66608876]
[1746440272977,6.8748,145.45,145.43,8.8773]
[1746440274780,6.8748,145.45,145.43,2.0016]
[1746440275085,6.8753,145.44,145.43,2.0016]
[1746440276286,15.45443842,145.44,145.43,2.0016]
[1746440277283,8.57913842,145.44,145.43,2.0016]
[1746440277783,6.62377526,145.44,145.43,3.0016]
[1746440279483,6.8751,145.45,145.43,3.0016]
[1746440279687,6.60097836,145.44,145.43,3.0016]
[1746440280284,13.47627836,145.44,145.43,3.0016]
[1746440280584,6.60097836,145.44,145.43,9.8774]
[1746440280886,6.60097836,145.44,145.43,3.0016]
[1746440281486,13.47627836,145.44,145.43,3.0016]
[1746440281788,13.44795298,145.44,145.43,3.0016]
[1746440281981,6.57265298,145.44,145.43,3.0016]
[1746440283286,6.57265298,145.44,145.43,9.8774]
[1746440283488,13.44795298,145.44,145.43,3.0016]
[1746440285988,6.57265298,145.44,145.43,3.0016]
[1746440286884,6.875,145.45,145.43,3.0016]
[1746440287088,6.53562149,145.44,145.43,3.0016]
[1746440287678,6.52610475,145.44,145.43,3.0016]
[1746440289090,6.52610475,145.44,145.43,9.8774]
[1746440289389,6.41366895,145.44,145.43,9.8774]
[1746440290094,6.41366895,145.44,145.43,3.0016]
[1746440290891,13.28896895,145.44,145.43,3.0016]
[1746440291088,6.41366895,145.44,145.43,3.0016]
[1746440291497,13.28896895,145.44,145.43,3.0016]
[1746440292092,13.28896895,145.44,145.42,6.8759]
[1746440292292,6.41366895,145.43,145.42,6.8759]
[1746440293490,6.41366895,145.43,145.41,6.8764]
[1746440293689,6.8753,145.44,145.41,6.8764]
[1746440293690,6.41366895,145.42,145.41,6.8764]
[1746440294593,6.32821125,145.42,145.41,6.8764]
[1746440295396,6.32821125,145.42,145.4,4.76560824]
[1746440295695,6.32821125,145.41,145.4,4.76560824]
[1746440296197,6.32821125,145.41,145.4,11.64280824]
[1746440296494,6.34248184,145.41,145.4,11.64280824]
[1746440299197,6.23995729,145.41,145.4,11.64280824]
[1746440299700,6.22945865,145.41,145.4,11.64280824]
[1746440301492,6.22840898,145.41,145.4,4.76560824]
[1746440302594,6.22840898,145.41,145.39,6.8774]
[1746440302792,6.22840898,145.4,145.39,6.8774]
[1746440304896,6.22209566,145.4,145.39,6.8774]
[1746440306596,6.21635799,145.4,145.39,6.8774]
[1746440306793,6.21635799,145.4,145.38,11.64360824]
[1746440306996,6.21635799,145.39,145.38,11.64360824]
[1746440307297,6.21635799,145.39,145.38,6.878]
[1746440307491,6.21635799,145.39,145.38,11.64360824]
[1746440310098,6.20083598,145.39,145.38,11.64360824]
[1746440311797,6.8765,145.42,145.38,4.76560824]
[1746440312002,6.19625025,145.41,145.38,4.76560824]
[1746440312201,6.19625025,145.4,145.38,4.76560824]
[1746440312401,6.19625025,145.39,145.38,4.76560824]
[1746440312901,6.19625025,145.39,145.38,11.64370824]
[1746440313499,6.8765,145.42,145.4,6.8771]
[1746440313706,6.17926865,145.41,145.4,6.8771]
[1746440316105,6.17926865,145.41,145.38,4.76560824]
[1746440316295,6.17926865,145.4,145.38,4.76560824]
[1746440316499,6.17926865,145.39,145.38,4.76560824]
[1746440316700,6.17926865,145.39,145.38,11.64370824]
[1746440318909,6.17267963,145.39,145.38,11.64370824]
[1746440322315,6.15702304,145.39,145.38,11.64370824]
[1746440324015,6.1514157,145.39,145.38,11.64370824]
[1746440325722,6.8769,145.41,145.38,11.64370824]
[1746440325908,6.14627901,145.4,145.38,11.64370824]
[1746440326109,6.14627901,145.39,145.38,11.64370824]
[1746440326715,6.14627901,145.39,145.38,6.8781]
[1746440327517,6.14484721,145.39,145.38,6.8781]
[1746440329217,6.13766911,145.39,145.38,6.8781]
[1746440331021,6.13820403,145.39,145.38,6.8781]
[1746440334429,6.02982174,145.39,145.38,6.8781]
[1746440336123,6.877,145.41,145.39,6.8776]
[1746440336321,6.01286151,145.4,145.39,6.8776]
[1746440337929,6.01340835,145.4,145.39,6.8776]
[1746440338730,6.01340835,145.4,145.39,11.6462488]
[1746440339028,26.5,145.47,145.42,4.7686488]
[1746440339226,26.5,145.47,145.4,4.7686488]
[1746440339427,4.7686488,145.46,145.41,6.8766]
[1746440339929,6.8757,145.44,145.41,6.8766]
[1746440340325,4.7686488,145.46,145.41,6.8766]
[1746440340527,6.876,145.43,145.41,6.8766]
[1746440341924,4.7686488,145.46,145.39,7.8774]
[1746440342130,4.7686488,145.44,145.39,1.0]
[1746440342729,6.8766,145.42,145.39,7.8773]
[1746440343326,6.8753,145.44,145.42,6.876]
[1746440343526,6.8753,145.44,145.4,4.7686488]
[1746440344132,6.8753,145.44,145.42,6.8759]
[1746440344835,6.8753,145.44,145.41,6.8764]
[1746440346133,6.8753,145.44,145.41,11.6450488]
[1746440346833,6.8759,145.43,145.41,11.6450488]
[1746440348328,2.0248,145.48,145.41,4.7686488]
[1746440348533,29.2486488,145.5,145.44,4.7686488]
[1746440348923,6.8741,145.47,145.44,11.6438488]
[1746440349435,6.8744,145.46,145.44,11.6438488]
[1746440350536,29.2486488,145.5,145.44,11.6437488]
[1746440350935,5.51765487,145.49,145.44,11.6437488]
[1746440351136,6.874,145.47,145.44,11.6437488]
[1746440351337,5.51765487,145.46,145.44,11.6437488]
[1746440351634,5.51765487,145.45,145.44,11.6437488]
[1746440357542,5.48726702,145.45,145.44,4.7686488]
[1746440358042,5.48726702,145.45,145.44,11.6439488]
[1746440358242,24.48,145.54,145.44,4.7686488]
[1746440358440,24.48,145.54,145.47,4.7686488]
[1746440358641,24.48,145.54,145.49,6.8729]
[1746440358843,6.8717,145.52,145.47,4.7686488]
[1746440359032,24.48,145.54,145.49,4.7686488]
[1746440359236,6.8713,145.53,145.49,4.7686488]
[1746440359643,6.8713,145.53,145.51,6.8719]
[1746440359946,6.8713,145.53,145.49,4.7686488]
[1746440360136,6.8713,145.53,145.5,6.8721]
[1746440360746,1.33283,145.55,145.51,4.7686488]
[1746440361245,6.8706,145.54,145.51,11.6401488]
[1746440361443,1.33283,145.55,145.51,4.7686488]
[1746440361943,1.33283,145.55,145.53,4.7686488]
[1746440362848,1.33283,145.55,145.54,6.8706]
[1746440363243,1.33283,145.55,145.54,31.3306]
[1746440363444,6.8685,145.59,145.56,6.8692]
[1746440363646,573.7286488,145.63,145.57,4.7686488]
[1746440363848,568.96,145.63,145.57,11.6374488]
[1746440364045,24.46,145.63,145.57,11.6374488]
[1746440364447,6.8683,145.59,145.57,4.7686488]
[1746440364853,24.46,145.63,145.57,4.7686488]
[1746440365158,6.8681,145.6,145.57,4.7686488]
[1746440365343,24.46,145.63,145.57,4.7686488]
[1746440365854,6.8683,145.59,145.56,6.8695]
[1746440366354,6.8683,145.59,145.57,6.8691]
[1746440366854,6.8683,145.59,145.54,31.89080684]
[1746440367053,6.8683,145.59,145.56,6.8695]
[1746440368558,6.868,145.6,145.56,6.8695]
[1746440368858,6.868,145.6,145.57,6.8691]
[1746440370459,6.868,145.6,145.56,6.8694]
[1746440372960,6.868,145.6,145.57,6.8691]
[1746440374362,6.868,145.6,145.56,6.8694]
[1746440374560,6.8683,145.59,145.56,6.8694]
[1746440374857,24.46,145.63,145.54,31.89080684]
[1746440375061,6.868,145.6,145.57,6.8691]
[1746440381369,6.868,145.6,145.58,6.8687]
[1746440381662,6.868,145.6,145.54,31.89090864]
[1746440381860,6.868,145.6,145.57,6.8689]
[1746440382667,6.868,145.6,145.58,6.8686]
[1746440382970,6.8671,145.62,145.54,31.89090864]
[1746440383164,5.20385556,145.61,145.55,6.3819]
[1746440383369,6.8671,145.62,145.55,6.3819]
[1746440383559,5.20576666,145.61,145.55,6.3819]
[1746440383764,6.8666,145.63,145.6,6.8675]
[1746440383959,5.20585026,145.62,145.6,6.8675]
[1746440384165,5.20585026,145.61,145.6,6.8675]
[1746440384363,6.8662,145.64,145.61,6.8673]
[1746440384566,5.20032493,145.63,145.61,6.8673]
[1746440384768,6.8662,145.64,145.61,6.8673]
[1746440384966,5.20035059,145.63,145.62,6.8668]
[1746440385166,5.20035059,145.63,145.58,24.42]
[1746440385367,5.20035059,145.62,145.58,24.42]
[1746440385568,5.20035059,145.61,145.58,24.42]
[1746440385769,5.1995715,145.6,145.55,24.42]
[1746440386066,5.19956949,145.59,145.55,24.42]
[1746440386368,24.42,145.61,145.55,24.42]
[1746440386570,6.8694,145.57,145.55,24.42]
[1746440387272,24.42,145.61,145.55,31.29]
[1746440387576,5.21408339,145.6,145.55,31.29]
[1746440387876,12.08258339,145.59,145.55,31.29]
[1746440388175,6.8685,145.59,145.55,31.29]
[1746440390079,5.21747483,145.58,145.55,31.29]
[1746440390279,6.8685,145.59,145.55,31.29]
[1746440390481,5.21750706,145.58,145.55,31.29]
[1746440390673,6.8685,145.59,145.55,31.29]
[1746440390874,5.21705058,145.58,145.55,31.29]
[1746440391076,6.8685,145.59,145.55,31.29]
[1746440391380,5.21959028,145.58,145.55,24.42]
[1746440391581,6.8679,145.6,145.55,24.42]
[1746440391779,5.21916848,145.59,145.56,6.8692]
[1746440391984,5.21916848,145.58,145.56,6.8692]
[1746440392173,5.21916848,145.58,145.55,24.42]
[1746440392377,24.42,145.61,145.55,24.42]
[1746440392577,6.869,145.58,145.55,24.42]
[1746440392781,5.22204645,145.57,145.55,24.42]
[1746440393081,6.869,145.58,145.55,31.29]
[1746440393282,5.22558636,145.57,145.55,31.29]
[1746440393485,6.869,145.58,145.55,31.29]
[1746440393783,5.22569794,145.57,145.55,31.29]
[1746440393981,6.869,145.58,145.55,31.29]
[1746440394182,5.22571213,145.57,145.55,31.29]
[1746440394382,6.869,145.58,145.55,31.29]
[1746440394582,5.22807028,145.57,145.55,31.29]
[1746440394783,6.869,145.58,145.55,31.29]
[1746440395083,5.22303304,145.57,145.55,31.29]
[1746440395384,6.869,145.58,145.55,31.29]
[1746440395576,5.22529285,145.57,145.55,31.29]
[1746440395779,6.869,145.58,145.55,31.29]
[1746440396081,5.21826101,145.57,145.55,31.29]
[1746440396274,6.869,145.58,145.55,31.29]
[1746440396487,5.22090844,145.57,145.55,31.29]
[1746440396787,6.869,145.58,145.55,31.29]
[1746440396987,5.21839579,145.57,145.55,31.29]
[1746440397287,6.869,145.58,145.55,31.29]
[1746440397585,5.2214356,145.57,145.55,31.29]
[1746440397782,6.8692,145.57,145.55,24.42]
[1746440398588,6.8689,145.58,145.55,31.2901]
[1746440398788,5.22427714,145.57,145.55,31.2901]
[1746440398987,6.8684,145.59,145.56,6.8696]
[1746440399286,5.22427714,145.58,145.56,6.8696]
[1746440399487,24.42,145.61,145.56,6.8696]
[1746440399690,6.8683,145.59,145.56,6.8696]
[1746440399882,5.22764603,145.58,145.56,6.8696]
[1746440400083,5.22764603,145.57,145.56,6.8696]
[1746440401584,24.42,145.61,145.58,6.8686]
[1746440401784,5.23608246,145.6,145.55,24.42]
[1746440402084,5.23608246,145.59,145.55,24.42]
[1746440402286,5.23608246,145.58,145.55,24.42]
[1746440402487,5.24115229,145.57,145.55,24.42]
[1746440402787,6.8675,145.61,145.56,1.0]
[1746440402977,5.23664829,145.6,145.58,6.8683]
[1746440403183,5.23664829,145.59,145.58,6.8683]
[1746440404189,6.8675,145.61,145.59,6.8682]
[1746440404380,5.23839043,145.6,145.59,6.8682]
[1746440407592,6.8666,145.63,145.6,6.8676]
[1746440407794,5.24056644,145.62,145.6,6.8676]
[1746440407996,5.24056644,145.61,145.6,6.8676]
[1746440411199,24.3,145.67,145.64,6.8655]
[1746440411494,2.126,145.72,145.64,24.3]
[1746440411695,6.8636,145.69,145.64,24.3]
[1746440412794,24.3,145.69,145.61,24.3]
[1746440413199,6.8657,145.65,145.62,6.8666]
[1746440414493,6.8657,145.65,145.63,6.8663]
[1746440414696,6.8657,145.65,145.61,24.3]
[1746440414893,6.8659,145.64,145.61,31.167]
[1746440415397,6.8659,145.64,145.61,24.3]
[1746440415599,6.8659,145.64,145.61,31.167]
[1746440417099,6.8659,145.64,145.62,6.8668]
[1746440417598,6.8656,145.65,145.62,6.8668]
[1746440418199,6.8656,145.65,145.63,6.8663]
[1746440418699,2.0824,145.68,145.61,24.3]
[1746440419193,6.8648,145.67,145.63,6.8659]
[1746440419396,6.8648,145.67,145.61,24.3]
[1746440419599,2.0824,145.68,145.61,24.3]
[1746440419799,6.8645,145.67,145.64,6.8655]
[1746440421802,6.865,145.66,145.64,6.8655]
[1746440422304,2.0824,145.68,145.61,24.3]
[1746440422698,2.0824,145.68,145.62,6.8666]
[1746440423000,6.8661,145.64,145.62,6.8666]
[1746440423201,4.94669182,145.63,145.62,6.8666]
[1746440424698,4.94669182,145.63,145.61,6.867]
[1746440424906,4.94669182,145.62,145.61,6.867]
[1746440425407,11.81359182,145.62,145.58,24.28]
[1746440425606,4.94669182,145.61,145.58,24.28]
[1746440425799,4.94669182,145.6,145.56,31.2019]
[1746440426000,6.8675,145.61,145.59,6.8682]
[1746440426200,4.95957787,145.6,145.59,6.8682]
[1746440426506,4.95981796,145.6,145.59,6.8682]
[1746440427006,4.95981796,145.6,145.58,6.8685]
[1746440427204,4.9596546,145.59,145.58,6.8685]
[1746440428109,4.9596546,145.59,145.57,6.8689]
[1746440428401,4.95955283,145.58,145.56,25.28]
[1746440428600,7.43090864,145.64,145.56,32.1492]
[1746440428802,4.95944906,145.63,145.56,32.1492]
[1746440429002,6.8686,145.59,145.56,7.8692]
[1746440429203,4.95944906,145.58,145.56,7.8692]
[1746440429403,6.8686,145.59,145.57,6.8692]
[1746440429706,4.96300289,145.58,145.57,6.8692]
[1746440430208,4.96300289,145.58,145.56,7.8694]
[1746440430410,6.8686,145.59,145.56,7.8694]
[1746440430610,4.96615368,145.58,145.56,7.8694]
[1746440430912,6.8686,145.59,145.56,7.8694]
[1746440431210,4.96615368,145.58,145.56,7.8694]
[1746440431507,6.8686,145.59,145.56,7.8694]
[1746440431709,4.96685859,145.58,145.56,7.8694]